fUST/lending_fUST_20240313
["ID","MTS","AMOUNT","RATE_DAILY","PERIOD"]
[318586103,1710303032738,-500.0,0.00015299,2]
[318586104,1710303032748,-500.0,0.00015299,2]
[318586105,1710303032758,-500.0,0.00015299,2]
[318586106,1710303032768,-645.99976565,0.00015299,2]
[318586107,1710303032777,-500.0,0.00015299,2]
[318586108,1710303032786,-500.0,0.00015299,2]
[318586109,1710303032797,-2984.62,0.00015299,2]
[318586110,1710303032807,-2984.62,0.00015299,2]
[318586111,1710303032817,-154.59778175,0.00015299,2]
[318586112,1710303032828,-152.21890955,0.00015299,2]
[318586113,1710303032838,-500.0,0.00015299,2]
[318586114,1710303032847,-500.0,0.00015299,2]
[318586115,1710303032858,-47072.57464011,0.000153,2]
[318586116,1710303032879,-40409.02361482,0.000153,2]
[318586117,1710303032889,-154.59778174,0.0001535,2]
[318586118,1710303032899,-290.55541988,0.00015398,2]
[318586119,1710303032909,-500.0,0.00015398,2]
[318586120,1710303032919,-500.0,0.00015398,2]
[318586121,1710303032929,-500.0,0.00015398,2]
[318586122,1710303032939,-500.0,0.00015398,2]
[318586123,1710303032949,-500.0,0.00015398,2]
[318586124,1710303032962,-2984.62,0.00015398,2]
[318586125,1710303032972,-500.0,0.00015398,2]
[318586126,1710303032983,-500.0,0.00015399,2]
[318586127,1710303032995,-502.50587621,0.00015399,2]
[318586128,1710303033005,-155.35823875,0.00015399,2]
[318586129,1710303033016,-500.0,0.00015399,2]
[318586130,1710303033025,-511.66934928,0.00015399,2]
[318586131,1710303033034,-500.0,0.00015399,2]
[318586132,1710303033045,-500.0,0.00015399,2]
[318586133,1710303033055,-500.0,0.00015399,2]
[318586134,1710303033065,-500.0,0.00015399,2]
[318586135,1710303033074,-500.0,0.00015399,2]
[318586136,1710303033084,-500.0,0.00015399,2]
[318586137,1710303033094,-285.25548669,0.00015399,2]
[318586138,1710303033104,-500.0,0.00015399,2]
[318586139,1710303033115,-501.54553248,0.00015399,2]
[318586140,1710303033125,-500.0,0.00015399,2]
[318586141,1710303033135,-500.0,0.00015399,2]
[318586142,1710303033145,-500.0,0.00015399,2]
[318586143,1710303033155,-500.0,0.00015399,2]
[318586144,1710303033166,-500.0,0.00015399,2]
[318586145,1710303033176,-502.48598455,0.00015399,2]
[318586146,1710303033186,-1263.35313706,0.000154,2]
[318586147,1710303033196,-154.59778174,0.000154,2]
[318586148,1710303033206,-359.65100796,0.000154,2]
[318586149,1710303033216,-205.71817734,0.00015483,2]
[318586150,1710303033226,-1506.08163674,0.00015483,2]
[318586151,1710303033237,-1000.0,0.00015485,2]
[318586152,1710303033247,-500.0,0.00015497,2]
[318586153,1710303033257,-500.0,0.00015497,2]
[318586154,1710303033267,-500.0,0.00015497,2]
[318586155,1710303033276,-500.0,0.00015497,2]
[318586156,1710303033287,-500.0,0.00015497,2]
[318586157,1710303033296,-500.0,0.00015497,2]
[318586158,1710303033306,-2984.62,0.00015497,2]
[318586159,1710303033315,-500.0,0.00015497,2]
[318586160,1710303033324,-19592.54796629,0.00015498,2]
[318586161,1710303033333,-182.08971488,0.00015498,2]
[318586162,1710303033343,-405.71720491,0.00015498,2]
[318586163,1710303033354,-155.26822577,0.00015498,2]
[318586164,1710303033363,-6890.23424132,0.00015498,2]
[318586165,1710303033373,-708.65902308,0.00015498,2]
[318586166,1710303033382,-209.62664512,0.00015498,2]
[318586167,1710303033391,-431.67424545,0.00015498,2]
[318586168,1710303033400,-300.77495,0.00015498,2]
[318586169,1710303033410,-743.98973532,0.00015498,2]
[318586170,1710303033421,-316.55543465,0.00015498,2]
[318586171,1710303033432,-672.73710296,0.00015498,2]
[318586172,1710303033442,-172.51784951,0.00015498,2]
[318586173,1710303033452,-155.88805604,0.00015498,2]
[318586174,1710303033463,-1951.29003649,0.00015498,2]
[318586175,1710303033473,-10361.69842447,0.00015498,2]
[318586176,1710303033482,-538.58014094,0.00015498,2]
[318586177,1710303033491,-214.35201083,0.00015498,2]
[318586178,1710303033501,-294.73459333,0.00015498,2]
[318586179,1710303033511,-155.12720431,0.00015498,2]
[318586180,1710303033521,-155.12720431,0.00015498,2]
[318586181,1710303033531,-185.02244856,0.00015498,2]
[318586182,1710303033541,-505.93243826,0.00015498,2]
[318586183,1710303033550,-13238.18106759,0.00015498,2]
[318586184,1710303033561,-312.60129477,0.00015498,2]
[318586185,1710303033571,-505.88837986,0.00015498,2]
[318586186,1710303033580,-500.0,0.00015498,2]
[318586187,1710303033589,-500.0,0.00015498,2]
[318586188,1710303033599,-500.0,0.00015498,2]
[318586189,1710303033609,-601.80935557,0.00015498,2]
[318586190,1710303033620,-500.0,0.00015498,2]
[318586191,1710303033629,-500.0,0.00015498,2]
[318586192,1710303033639,-2984.62,0.00015498,2]
[318586193,1710303033649,-2984.62,0.00015498,2]
[318586194,1710303033659,-500.0,0.00015498,2]
[318586195,1710303033669,-500.0,0.00015498,2]
[318586196,1710303033678,-500.0,0.00015499,2]
[318586197,1710303033688,-500.0,0.00015499,2]
[318586198,1710303033697,-500.0,0.00015499,2]
[318586199,1710303033706,-500.0,0.00015499,2]
[318586200,1710303033715,-322.02543239,0.00015499,2]
[318586201,1710303033724,-500.0,0.00015499,2]
[318586202,1710303033733,-500.0,0.00015499,2]
[318586203,1710303033743,-500.0,0.00015499,2]
[318586204,1710303033752,-500.0,0.00015499,2]
[318586205,1710303033762,-500.0,0.00015499,2]
[318586206,1710303033771,-500.0,0.00015499,2]
[318586207,1710303033781,-500.0,0.00015499,2]
[318586208,1710303033790,-500.0,0.00015499,2]
[318586209,1710303033801,-500.0,0.00015499,2]
[318586210,1710303033811,-513.31083506,0.00015499,2]
[318586211,1710303033821,-500.0,0.00015499,2]
[318586212,1710303033831,-500.0,0.00015499,2]
[318586213,1710303033842,-538.32209982,0.00015499,2]
[318586214,1710303033852,-500.0,0.00015499,2]
[318586215,1710303033862,-500.0,0.00015499,2]
[318586216,1710303033871,-500.0,0.00015499,2]
[318586217,1710303033882,-500.0,0.00015499,2]
[318586218,1710303033892,-500.0,0.00015499,2]
[318586219,1710303033901,-500.0,0.00015499,2]
[318586220,1710303033910,-500.0,0.00015499,2]
[318586221,1710303033922,-500.0,0.00015499,2]
[318586222,1710303033931,-500.0,0.00015499,2]
[318586223,1710303033940,-500.0,0.00015499,2]
[318586224,1710303033951,-500.0,0.00015499,2]
[318586225,1710303033963,-615.63,0.00015499,2]
[318586226,1710303033975,-2984.62,0.00015499,2]
[318586227,1710303033985,-2984.62,0.00015499,2]
[318586228,1710303033994,-2984.62,0.00015499,2]
[318586229,1710303034003,-2984.62,0.00015499,2]
[318586230,1710303034014,-2984.62,0.00015499,2]
[318586231,1710303034024,-2984.62,0.00015499,2]
[318586232,1710303034035,-2984.62,0.00015499,2]
[318586233,1710303034045,-2984.62,0.00015499,2]
[318586234,1710303034056,-2984.62,0.00015499,2]
[318586235,1710303034066,-2984.62,0.00015499,2]
[318586236,1710303034076,-2984.62,0.00015499,2]
[318586237,1710303034087,-2984.62,0.00015499,2]
[318586238,1710303034096,-2984.62,0.00015499,2]
[318586239,1710303034106,-2984.62,0.00015499,2]
[318586240,1710303034115,-2984.62,0.00015499,2]
[318586241,1710303034125,-2984.62,0.00015499,2]
[318586242,1710303034136,-2984.62,0.00015499,2]
[318586243,1710303034146,-2984.6387128,0.00015499,2]
[318586244,1710303034157,-500.0,0.00015499,2]
[318586245,1710303034168,-500.0,0.00015499,2]
[318586246,1710303034178,-500.0,0.00015499,2]
[318586247,1710303034188,-646.61228317,0.00015499,2]
[318586248,1710303034197,-374129.48075642,0.000155,2]
[318586587,1710303040140,-155.47890425,0.00015345,2]
[318586588,1710303040149,-19844.78238175,0.000155,2]
[318586610,1710303046193,-155.81437451,0.00015499,2]
[318586611,1710303046202,-934.63055683,0.00015499,2]
[318586612,1710303046211,-3162.76297905,0.00015499,2]
[318586613,1710303046220,-36076.1914831,0.000155,2]
[318586614,1710303046231,-81561.5258319,0.000155,2]
[318586642,1710304232208,-910.22982798,0.00014358,2]
[318586643,1710304232218,-336.85111185,0.00014458,2]
[318586644,1710304232229,-224.268634,0.00014466,2]
[318586645,1710304232238,-2000.0,0.00014725,2]
[318586646,1710304232249,-542.54589939,0.00015299,2]
[318586647,1710304232259,-500.0,0.00015299,2]
[318586648,1710304232268,-500.0,0.00015299,2]
[318586649,1710304232277,-500.0,0.00015299,2]
[318586650,1710304232286,-344.6189165,0.000154,2]
[318586651,1710304232295,-1137.01782339,0.000154,2]
[318586653,1710304232305,-187.37817515,0.000154,2]
[318586655,1710304232314,-310.02386432,0.00015498,2]
[318586657,1710304232323,-1010.06450174,0.00015499,2]
[318586659,1710304232332,-322.32581664,0.00015499,2]
[318586660,1710304232341,-500.0,0.00015499,2]
[318586662,1710304232351,-169.21816455,0.00015499,2]
[318586664,1710304232360,-500.0,0.00015499,2]
[318586666,1710304232370,-500.0,0.00015499,2]
[318586668,1710304232379,-501.68409743,0.00015499,2]
[318586670,1710304232389,-169.31838882,0.00015499,2]
[318586672,1710304232398,-500.0,0.00015499,2]
[318586673,1710304232407,-500.0,0.00015499,2]
[318586674,1710304232416,-113.43006618,0.00015499,2]
[318586675,1710304232427,-386.56993382,0.00015499,2]
[318586676,1710304232437,-17364.22711261,0.000155,2]
[318586799,1710304238309,-33535.69684215,0.000155,2]
[318586805,1710304238329,-30554.87145142,0.000155,2]
[318586959,1710304413833,802.677608,0.00025,120]
[318586960,1710304428391,2000.0,0.000155,7]
[318587165,1710305438434,-336.85111185,0.00014331,2]
[318587168,1710305438443,-163.14888815,0.00014332,2]
[318587172,1710305438455,-37.94793285,0.00014332,2]
[318587175,1710305438465,-394.30546793,0.0001488,2]
[318587178,1710305438476,-1605.69453207,0.0001488,2]
[318587181,1710305438486,-4678.46483085,0.00015,2]
[318587618,1710305443520,-1948.29221998,0.00015,2]
[318587904,1710305446596,-1322.21167448,0.00015,2]
[318587906,1710305446606,-620.44466369,0.00015098,2]
[318587908,1710305446617,-1023.31604106,0.000154,2]
[318587909,1710305446626,-187.37817515,0.000154,2]
[318587911,1710305446636,-545.51720937,0.000154,2]
[318587913,1710305446646,-150.921,0.0001545,2]
[318587915,1710305446656,-928.63688525,0.00015498,2]
[318587917,1710305446665,-321.99580067,0.00015498,2]
[318587919,1710305446675,-1083.10574798,0.00015498,2]
[318587921,1710305446684,-500.0,0.00015499,2]
[318587923,1710305446693,-500.0,0.00015499,2]
[318587925,1710305446702,-500.0,0.00015499,2]
[318587927,1710305446712,-500.0,0.00015499,2]
[318587929,1710305446721,-500.0,0.00015499,2]
[318587931,1710305446730,-504.09884415,0.00015499,2]
[318587933,1710305446739,-500.0,0.00015499,2]
[318587935,1710305446748,-500.0,0.00015499,2]
[318587937,1710305446757,-217.3613258,0.00015499,2]
[318587939,1710305446767,-500.0,0.00015499,2]
[318587941,1710305446776,-500.0,0.00015499,2]
[318587943,1710305446785,-500.0,0.00015499,2]
[318587945,1710305446794,-500.0,0.00015499,2]
[318587947,1710305446803,-500.0,0.00015499,2]
[318587949,1710305446812,-500.0,0.00015499,2]
[318587951,1710305446822,-500.0,0.00015499,2]
[318587953,1710305446831,-285.9780106,0.00015499,2]
[318587955,1710305446840,-500.0,0.00015499,2]
[318587957,1710305446850,-500.0,0.00015499,2]
[318587959,1710305446858,-507.43587066,0.00015499,2]
[318587961,1710305446867,-500.0,0.00015499,2]
[318587963,1710305446876,-500.0,0.00015499,2]
[318587965,1710305446885,-501.95249647,0.00015499,2]
[318587967,1710305446894,-265.45671766,0.00015499,2]
[318587969,1710305446903,-500.0,0.00015499,2]
[318587971,1710305446913,-500.0,0.00015499,2]
[318587973,1710305446923,-500.0,0.00015499,2]
[318587975,1710305446932,-500.0,0.00015499,2]
[318587977,1710305446941,-500.0,0.00015499,2]
[318587979,1710305446950,-500.0,0.00015499,2]
[318587981,1710305446960,-500.0,0.00015499,2]
[318587983,1710305446969,-500.0,0.00015499,2]
[318587985,1710305446978,-219.35,0.00015499,2]
[318587987,1710305446987,-500.0,0.00015499,2]
[318587989,1710305446996,-500.0,0.00015499,2]
[318587991,1710305447005,-500.0,0.00015499,2]
[318587993,1710305447014,-500.0,0.00015499,2]
[318587995,1710305447024,-501.66502087,0.00015499,2]
[318587997,1710305447034,-500.0,0.00015499,2]
[318587999,1710305447043,-500.0,0.00015499,2]
[318588001,1710305447052,-500.0,0.00015499,2]
[318588003,1710305447061,-500.0,0.00015499,2]
[318588005,1710305447071,-500.0,0.00015499,2]
[318588007,1710305447080,-500.0,0.00015499,2]
[318588009,1710305447088,-500.0,0.00015499,2]
[318588010,1710305447097,-500.0,0.00015499,2]
[318588013,1710305447108,-500.0,0.00015499,2]
[318588015,1710305447117,-500.0,0.00015499,2]
[318588016,1710305447126,-500.0,0.00015499,2]
[318588018,1710305447135,-571.97,0.00015499,2]
[318588020,1710305447145,-500.0,0.00015499,2]
[318588022,1710305447155,-500.0,0.00015499,2]
[318588024,1710305447166,-500.0,0.00015499,2]
[318588026,1710305447176,-500.0,0.00015499,2]
[318588029,1710305447186,-553.18221707,0.00015499,2]
[318588031,1710305447196,-500.0,0.00015499,2]
[318588033,1710305447205,-500.0,0.00015499,2]
[318588035,1710305447215,-926.25,0.00015499,2]
[318588036,1710305447225,-500.0,0.00015499,2]
[318588038,1710305447234,-926.25,0.00015499,2]
[318588040,1710305447244,-926.25,0.00015499,2]
[318588042,1710305447254,-926.25,0.00015499,2]
[318588044,1710305447264,-926.25,0.00015499,2]
[318588046,1710305447272,-926.25,0.00015499,2]
[318588048,1710305447282,-926.25,0.00015499,2]
[318588050,1710305447291,-926.25,0.00015499,2]
[318588052,1710305447300,-926.25,0.00015499,2]
[318588054,1710305447309,-926.25,0.00015499,2]
[318588056,1710305447319,-926.25,0.00015499,2]
[318588058,1710305447327,-926.25,0.00015499,2]
[318588060,1710305447337,-926.25,0.00015499,2]
[318588062,1710305447346,-926.25,0.00015499,2]
[318588064,1710305447355,-926.25,0.00015499,2]
[318588066,1710305447364,-926.25,0.00015499,2]
[318588068,1710305447373,-926.25,0.00015499,2]
[318588070,1710305447382,-926.25,0.00015499,2]
[318588072,1710305447391,-926.25,0.00015499,2]
[318588074,1710305447400,-926.25,0.00015499,2]
[318588076,1710305447409,-926.25,0.00015499,2]
[318588078,1710305447418,-926.25,0.00015499,2]
[318588080,1710305447427,-926.25,0.00015499,2]
[318588082,1710305447436,-926.25398816,0.00015499,2]
[318588084,1710305447445,-14451.67941671,0.000155,2]
[318588086,1710305447459,-155081.15856,0.000155,2]
[318588088,1710305447470,-112265.61462757,0.000155,2]
[318588090,1710305447481,-45961.66030311,0.000155,2]
[318594487,1710306643650,-336.85111185,0.00014476,2]
[318594488,1710306643661,-201.096821,0.00014477,2]
[318594489,1710306643672,-961.85206715,0.00015113,2]
[318594584,1710307831813,-336.85111185,0.0001419,2]
[318594585,1710307831823,-1948.9312739,0.00014191,2]
[318594586,1710307831833,-192.83081489,0.00014195,2]
[318594587,1710307831844,-439.565,0.00014195,2]
[318594596,1710307831958,-462.228,0.00014195,2]
[318594598,1710307831969,-325.14397417,0.00014195,2]
[318594600,1710307831980,-1580.23221094,0.00014195,2]
[318594602,1710307831989,-2153.4318795,0.00014215,2]
[318594604,1710307831998,-235.15146,0.00014274,2]
[318594606,1710307832007,-620.02223318,0.0001506,2]
[318594608,1710307832016,-186.33152971,0.00015113,2]
[318594610,1710307832025,-155.07909034,0.00015113,2]
[318594611,1710307832034,-155.07909034,0.00015113,2]
[318594612,1710307832044,-173.5801553,0.000154,2]
[318594613,1710307832052,-70.15558365,0.000154,2]
[318594691,1710307837814,-850.82885325,0.000154,2]
[318594694,1710307837822,-187.37817515,0.000154,2]
[318594697,1710307837831,-1592.59616333,0.000154,2]
[318594700,1710307837840,-659.99530045,0.00015481,2]
[318594703,1710307837850,-299.70596469,0.00015483,2]
[318594705,1710307837859,-2367.14463798,0.00015497,2]
[318594708,1710307837875,-632.85536202,0.00015497,2]
[318594711,1710307837884,-321.99580067,0.00015498,2]
[318594714,1710307837896,-204.80125661,0.00015499,2]
[318594717,1710307837907,-334.76056881,0.00015499,2]
[318594719,1710307837916,-429.31792098,0.00015499,2]
[318594722,1710307837925,-500.0,0.00015499,2]
[318594725,1710307837934,-500.0,0.00015499,2]
[318594728,1710307837944,-493.68077164,0.00015499,2]
[318594730,1710307837953,-500.0,0.00015499,2]
[318594733,1710307837962,-500.0,0.00015499,2]
[318594736,1710307837972,-500.0,0.00015499,2]
[318594739,1710307837981,-500.0,0.00015499,2]
[318594741,1710307837989,-500.0,0.00015499,2]
[318594744,1710307837998,-504.28791785,0.00015499,2]
[318594747,1710307838007,-500.0,0.00015499,2]
[318594750,1710307838017,-366.57803841,0.00015499,2]
[318594752,1710307838026,-500.0,0.00015499,2]
[318594755,1710307838035,-500.63318214,0.00015499,2]
[318594758,1710307838045,-500.0,0.00015499,2]
[318594761,1710307838055,-500.0,0.00015499,2]
[318594763,1710307838063,-500.0,0.00015499,2]
[318594766,1710307838072,-500.0,0.00015499,2]
[318594769,1710307838082,-477.39797374,0.00015499,2]
[318594771,1710307838091,-500.0,0.00015499,2]
[318594773,1710307838100,-500.0,0.00015499,2]
[318594775,1710307838109,-500.0,0.00015499,2]
[318594777,1710307838118,-500.0,0.00015499,2]
[318594779,1710307838127,-500.0,0.00015499,2]
[318594781,1710307838136,-500.0,0.00015499,2]
[318594783,1710307838145,-473.76,0.00015499,2]
[318594785,1710307838153,-500.0,0.00015499,2]
[318594787,1710307838162,-500.0,0.00015499,2]
[318594789,1710307838172,-500.0,0.00015499,2]
[318594791,1710307838182,-500.0,0.00015499,2]
[318594793,1710307838193,-500.0,0.00015499,2]
[318594795,1710307838203,-607.88,0.00015499,2]
[318594797,1710307838213,-500.0,0.00015499,2]
[318594799,1710307838224,-500.0,0.00015499,2]
[318594800,1710307838235,-500.0,0.00015499,2]
[318594802,1710307838245,-500.0,0.00015499,2]
[318594805,1710307838255,-500.0,0.00015499,2]
[318594807,1710307838265,-478.77977753,0.00015499,2]
[318594809,1710307838275,-76654.54834617,0.000155,2]
[318595267,1710307842884,-187.37817515,0.0001548,2]
[318595269,1710307842893,-2553.27096907,0.000155,2]
[318595275,1710307842941,-293.53999992,0.000155,2]
[318595454,1710307846098,-25289.56090017,0.000155,2]
[318595455,1710307846112,-95002.15626,0.000155,2]
[318596627,1710309038106,-336.85111185,0.00014337,2]
[318596629,1710309038116,-2000.0,0.00014338,2]
[318596631,1710309038125,-656.19949601,0.00014725,2]
[318597612,1710310232151,-2000.0,0.00014415,2]
[318597614,1710310232163,-202.73422734,0.00014723,2]
[318597615,1710310232174,-3081.86656379,0.00014724,2]
[318597617,1710310232184,-2000.0,0.0001488,2]
[318597619,1710310232194,-12959.24355092,0.00015,2]
[318597621,1710310232204,-2323.9,0.00015,2]
[318597622,1710310232214,-202.50973525,0.00015,2]
[318597623,1710310232223,-620.00111166,0.00015022,2]
[318597624,1710310232232,-217.07919021,0.00015113,2]
[318597625,1710310232242,-259.3534582,0.000152,2]
[318597626,1710310232250,-153.0,0.000152,2]
[318597627,1710310232260,-384.8753485,0.000152,2]
[318597628,1710310232269,-153.0,0.000152,2]
[318597629,1710310232278,-153.0,0.000152,2]
[318597630,1710310232288,-153.0,0.000152,2]
[318597632,1710310232297,-306.0,0.000152,2]
[318597633,1710310232307,-153.0,0.000152,2]
[318597635,1710310232316,-153.0,0.000152,2]
[318597637,1710310232327,-171.90457625,0.00015345,2]
[318597638,1710310232336,-2000.0,0.00015345,2]
[318597640,1710310232345,-1000.0,0.00015386,2]
[318597641,1710310232354,-48813.59098299,0.000154,2]
[318597643,1710310232363,-828.88599321,0.000154,2]
[318597645,1710310232372,-187.37817515,0.000154,2]
[318597646,1710310232381,-500.0,0.00015497,2]
[318597648,1710310232391,-500.0,0.00015497,2]
[318597649,1710310232400,-158.76983345,0.00015498,2]
[318597651,1710310232409,-155.48688859,0.00015498,2]
[318597653,1710310232418,-1478.98823319,0.00015498,2]
[318597655,1710310232428,-3154.73988475,0.00015498,2]
[318597657,1710310232438,-671.10612847,0.00015498,2]
[318597658,1710310232447,-500.0,0.00015499,2]
[318597659,1710310232456,-500.0,0.00015499,2]
[318597660,1710310232465,-500.0,0.00015499,2]
[318597661,1710310232474,-500.0,0.00015499,2]
[318597662,1710310232483,-608.75794298,0.00015499,2]
[318597663,1710310232492,-500.0,0.00015499,2]
[318597664,1710310232501,-500.0,0.00015499,2]
[318597665,1710310232510,-500.0,0.00015499,2]
[318597666,1710310232519,-177350.30523884,0.000155,2]
[318597667,1710310232528,-138504.43804636,0.000155,2]
[318597668,1710310232540,-10222.61265101,0.000155,2]
[318597746,1710310238278,-929.00320615,0.00015,2]
[318597748,1710310238288,-49070.99679385,0.000155,2]
[318598127,1710310246409,-728.25483834,0.000155,2]
[318598722,1710311432358,-1303.911334,0.00013973,2]
[318598724,1710311432368,-936.69095088,0.00013973,2]
[318598726,1710311432380,-636.04444992,0.00013973,2]
[318598728,1710311432391,-1193.202068,0.00014001,2]
[318598730,1710311432403,-2058.1565184,0.00014179,2]
[318598732,1710311432413,-187.03413394,0.00014315,2]
[318598734,1710311432423,-2000.0,0.00014467,2]
[318598736,1710311432432,-2000.0,0.00014983,2]
[318598738,1710311432443,-153.0,0.00015,2]
[318598740,1710311432452,-153.0,0.00015,2]
[318598742,1710311432463,-153.0,0.00015,2]
[318598744,1710311432474,-153.0,0.00015,2]
[318598746,1710311432484,-200.0,0.000153,2]
[318598748,1710311432494,-745.99739388,0.000154,2]
[318598750,1710311432504,-187.37817515,0.00015498,2]
[318598752,1710311432514,-500.0,0.00015499,2]
[318598754,1710311432524,-500.0,0.00015499,2]
[318598756,1710311432534,-413.55161968,0.00015499,2]
[318598758,1710311432543,-500.0,0.00015499,2]
[318598760,1710311432553,-402.78423594,0.00015499,2]
[318598761,1710311432562,-500.0,0.00015499,2]
[318598763,1710311432571,-500.0,0.00015499,2]
[318598765,1710311432580,-500.0,0.00015499,2]
[318598767,1710311432590,-64540.43922178,0.000155,2]
[318598768,1710311432602,-364743.99570223,0.000155,2]
[318598876,1710311438798,-2866.49170237,0.000155,2]
[318599253,1710311442520,-3032.08600186,0.000155,2]
[318599255,1710311442531,-5468.55147536,0.000155,2]
[318599533,1710311446563,-151843.02911155,0.000155,2]
[318599770,1710312576474,385.0,0.0001,2]
[318599804,1710312632701,-775.85668755,0.00013084,2]
[318599806,1710312632712,-1399.93295868,0.0001362,2]
[318599808,1710312632726,-520.0,0.0001362,2]
[318599810,1710312632765,-80.06704132,0.0001362,2]
[318599813,1710312632780,-616.089139,0.00013699,2]
[318599815,1710312632791,-336.85111185,0.00014,2]
[318599819,1710312632803,-2000.0,0.00014242,2]
[318599822,1710312632814,-182.47872633,0.00014341,2]
[318599824,1710312632826,-9930.68656832,0.00014441,2]
[318599853,1710312638620,-432.85647337,0.00014441,2]
[318599854,1710312638633,-15237.74150434,0.00014441,2]
[318599855,1710312638646,-2126.98666319,0.00014441,2]
[318599856,1710312638661,-433121.98346458,0.00014441,2]
[318599869,1710312642577,-2556.09658286,0.00014441,2]
[318599942,1710312648147,-75460.13874334,0.00014441,2]
[318599943,1710312648157,-426.0339865,0.00014765,2]
[318599944,1710312648167,-2000.0,0.00014865,2]
[318599945,1710312648177,-426.03398648,0.00014924,2]
[318599946,1710312648187,-302.0529343,0.00014941,2]
[318599947,1710312648198,-671.39765451,0.00014968,2]
[318599948,1710312648208,-620.00005558,0.00014984,2]
[318599949,1710312648218,-153.0,0.00015041,2]
[318599950,1710312648229,-407.45209129,0.00015068,2]
[318599951,1710312648238,-500.0,0.00015068,2]
[318599952,1710312648248,-500.0,0.00015068,2]
[318599953,1710312648258,-500.0,0.00015068,2]
[318599955,1710312648268,-500.0,0.00015068,2]
[318599956,1710312648278,-502.50733847,0.00015068,2]
[318599966,1710312648398,-163.58723079,0.00015068,2]
[318599968,1710312648410,-500.0,0.00015068,2]
[318599970,1710312648419,-314.72003293,0.00015068,2]
[318599972,1710312648429,-502.06426051,0.00015068,2]
[318599974,1710312648438,-500.0,0.00015068,2]
[318599976,1710312648447,-500.0,0.00015068,2]
[318599978,1710312648457,-500.0,0.00015068,2]
[318599980,1710312648467,-625.6860557,0.00015068,2]
[318599982,1710312648476,-500.0,0.00015068,2]
[318599984,1710312648485,-500.0,0.00015068,2]
[318599986,1710312648494,-500.0,0.00015068,2]
[318599988,1710312648503,-500.0,0.00015068,2]
[318599990,1710312648513,-419.71749383,0.00015068,2]
[318599991,1710312648522,-500.0,0.00015068,2]
[318599992,1710312648531,-500.0,0.00015068,2]
[318599993,1710312648540,-578.12501803,0.00015068,2]
[318599994,1710312648549,-500.0,0.00015068,2]
[318599995,1710312648558,-649.75757445,0.00015068,2]
[318599996,1710312648569,-500.0,0.00015068,2]
[318599997,1710312648578,-500.0,0.00015068,2]
[318599998,1710312648587,-500.0,0.00015068,2]
[318599999,1710312648597,-500.0,0.00015068,2]
[318600000,1710312648606,-500.85478778,0.00015068,2]
[318600001,1710312648615,-501.08597932,0.00015068,2]
[318600002,1710312648624,-500.0,0.00015068,2]
[318600003,1710312648633,-533.83790093,0.00015068,2]
[318600004,1710312648642,-500.0,0.00015068,2]
[318600005,1710312648651,-500.0,0.00015068,2]
[318600006,1710312648660,-500.0,0.00015068,2]
[318600007,1710312648669,-500.0,0.00015068,2]
[318600008,1710312648679,-500.88938314,0.00015068,2]
[318600009,1710312648688,-502.26125973,0.00015068,2]
[318600010,1710312648698,-500.0,0.00015068,2]
[318600011,1710312648707,-500.0,0.00015068,2]
[318600012,1710312648716,-501.20361034,0.00015068,2]
[318600013,1710312648725,-500.0,0.00015068,2]
[318600014,1710312648735,-500.0,0.00015068,2]
[318600015,1710312648744,-500.0,0.00015068,2]